[Event "*** SCC Grand Prix: Titled Tuesday Blitz"]
[Site "Chess.com"]
[Date "2020.07.07"]
[Round "5"]
[White "Legendinunknown"]
[Black "Matibar"]
[Result "0-1"]
[WhiteElo "2568"]
[BlackElo "2741"]
[TimeControl "180+1"]
[EndTime "10:57:03 PDT"]
[Termination "Matibar won by resignation"]

1. d4 {[%clk 0:03:00.9]} 1... e6 {[%clk 0:02:57.5]} 2. c4 {[%clk 0:03:00.2]}
2... b6 {[%clk 0:02:53.6]} 3. a3 {[%clk 0:02:59.2]} 3... Bb7 {[%clk 0:02:51.5]}
4. Nc3 {[%clk 0:02:58.6]} 4... Nf6 {[%clk 0:02:50.8]} 5. d5 {[%clk 0:02:58.5]}
5... Bd6 {[%clk 0:02:46.6]} 6. Nf3 {[%clk 0:02:58.1]} 6... O-O {[%clk
0:02:46.6]} 7. g3 {[%clk 0:02:57.5]} 7... c6 {[%clk 0:02:45.4]} 8. dxc6 {[%clk
0:02:49.5]} 8... dxc6 {[%clk 0:02:45]} 9. Bg2 {[%clk 0:02:50.4]} 9... c5 {[%clk
0:02:42.9]} 10. O-O {[%clk 0:02:50.2]} 10... Nc6 {[%clk 0:02:36.2]} 11. Be3
{[%clk 0:02:47.6]} 11... Qe7 {[%clk 0:02:33.5]} 12. Qc2 {[%clk 0:02:46.3]} 12...
Rad8 {[%clk 0:02:32.6]} 13. Rad1 {[%clk 0:02:45.8]} 13... h6 {[%clk 0:02:19.9]}
14. h3 {[%clk 0:02:44.6]} 14... Ne5 {[%clk 0:02:12.6]} 15. Nb5 {[%clk
0:02:35.8]} 15... Nxf3+ {[%clk 0:02:08.7]} 16. exf3 {[%clk 0:02:34.8]} 16... Bb8
{[%clk 0:02:07.5]} 17. Rfe1 {[%clk 0:02:33.5]} 17... Rxd1 {[%clk 0:01:59.8]} 18.
Qxd1 {[%clk 0:02:33.1]} 18... Rd8 {[%clk 0:02:00.7]} 19. Qc1 {[%clk 0:02:29.3]}
19... Bc6 {[%clk 0:01:38.2]} 20. Nc3 {[%clk 0:02:26.1]} 20... Qb7 {[%clk
0:01:38]} 21. Ne4 {[%clk 0:01:57.8]} 21... Nxe4 {[%clk 0:01:28.5]} 22. fxe4
{[%clk 0:01:58.7]} 22... Be5 {[%clk 0:01:28.6]} 23. b4 {[%clk 0:01:52.7]} 23...
Bd4 {[%clk 0:01:27.3]} 24. Bf4 {[%clk 0:01:45.7]} 24... e5 {[%clk 0:01:24.5]}
25. Bd2 {[%clk 0:01:45.1]} 25... Qe7 {[%clk 0:01:04.8]} 26. b5 {[%clk
0:01:44.7]} 26... Bb7 {[%clk 0:01:04.6]} 27. Rf1 {[%clk 0:01:44.2]} 27... a6
{[%clk 0:00:49.4]} 28. a4 {[%clk 0:01:36.2]} 28... axb5 {[%clk 0:00:49.6]} 29.
axb5 {[%clk 0:01:37.1]} 29... Ra8 {[%clk 0:00:49.2]} 30. Bc3 {[%clk 0:01:35.3]}
30... Ra4 {[%clk 0:00:43.2]} 31. Bxd4 {[%clk 0:01:30.4]} 31... cxd4 {[%clk
0:00:44.1]} 32. Qc2 {[%clk 0:01:28.9]} 32... Ra3 {[%clk 0:00:42.3]} 33. Qb2
{[%clk 0:01:25.8]} 33... Qc5 {[%clk 0:00:40.4]} 34. Rc1 {[%clk 0:01:22.1]} 34...
Bc8 {[%clk 0:00:36.7]} 35. Kh2 {[%clk 0:01:21.5]} 35... Be6 {[%clk 0:00:36.6]}
36. f4 {[%clk 0:01:20.1]} 36... f6 {[%clk 0:00:32]} 37. Qf2 {[%clk 0:01:17.1]}
37... Kh7 {[%clk 0:00:31.5]} 38. fxe5 {[%clk 0:01:04.3]} 38... fxe5 {[%clk
0:00:32.4]} 39. h4 {[%clk 0:01:01.9]} 39... Qc8 {[%clk 0:00:23.9]} 40. Qb2
{[%clk 0:00:55.4]} 40... Qa8 {[%clk 0:00:23.4]} 41. Rc2 {[%clk 0:00:43.9]} 41...
Ra4 {[%clk 0:00:16.8]} 42. c5 {[%clk 0:00:43.5]} 42... bxc5 {[%clk 0:00:15.9]}
43. b6 {[%clk 0:00:41.5]} 43... Ra2 {[%clk 0:00:14.5]} 44. b7 {[%clk 0:00:39.9]}
44... Qb8 {[%clk 0:00:14.2]} 45. Qb1 {[%clk 0:00:37]} 45... Rxc2 {[%clk
0:00:13.8]} 46. Qxc2 {[%clk 0:00:37.9]} 46... Qxb7 {[%clk 0:00:14.4]} 47. Qxc5
{[%clk 0:00:37.9]} 47... Qb8 {[%clk 0:00:14.8]} 48. Qe7 {[%clk 0:00:38]} 48...
Bg8 {[%clk 0:00:13.6]} 49. Bh3 {[%clk 0:00:37]} 49... Kh8 {[%clk 0:00:14.2]} 50.
Bf5 {[%clk 0:00:32.1]} 50... d3 {[%clk 0:00:13.8]} 51. Qd7 {[%clk 0:00:31.4]}
51... Qb2+ {[%clk 0:00:14.3]} 52. Kh3 {[%clk 0:00:31.6]} 52... d2 {[%clk
0:00:14.8]} 53. Bg4 {[%clk 0:00:22.3]} 53... Qc1 {[%clk 0:00:14.2]} 54. Bf3
{[%clk 0:00:22.3]} 54... Qf1+ {[%clk 0:00:12.9]} 55. Kg4 {[%clk 0:00:22.7]}
55... Qf2 {[%clk 0:00:07.1]} 56. h5 {[%clk 0:00:21.3]} 56... Kh7 {[%clk
0:00:07]} 57. Qf5+ {[%clk 0:00:20.5]} 57... Kh8 {[%clk 0:00:07.6]} 58. Qd7
{[%clk 0:00:21.4]} 58... Qe3 {[%clk 0:00:07.4]} 59. Qf5 {[%clk 0:00:19.1]} 59...
Qg5+ {[%clk 0:00:06.8]} 60. Qxg5 {[%clk 0:00:19.4]} 60... hxg5 {[%clk
0:00:07.7]} 61. Kxg5 {[%clk 0:00:20.3]} 61... Bb3 {[%clk 0:00:07.6]} 62. Kf5
{[%clk 0:00:20.6]} 62... d1=Q {[%clk 0:00:08.4]} 63. Bxd1 {[%clk 0:00:20.7]}
63... Bxd1 {[%clk 0:00:09.3]} 64. Kg6 {[%clk 0:00:19.2]} 64... Bf3 {[%clk
0:00:08.6]} 65. h6 {[%clk 0:00:18.2]} 65... Bxe4+ {[%clk 0:00:08.8]} 66. Kg5
{[%clk 0:00:18.6]} 66... gxh6+ {[%clk 0:00:09.2]} 67. Kxh6 {[%clk 0:00:19.2]}
67... Kg8 {[%clk 0:00:09.1]} 68. Kg5 {[%clk 0:00:20.1]} 68... Kf7 {[%clk
0:00:09.6]} 69. Kg4 {[%clk 0:00:20.3]} 69... Kf6 {[%clk 0:00:09.4]} 70. Kh3
{[%clk 0:00:21.2]} 70... Kg5 {[%clk 0:00:09.7]} 71. Kh2 {[%clk 0:00:22.1]} 71...
Kg4 {[%clk 0:00:10]} 72. Kg1 {[%clk 0:00:23]} 72... Kxg3 {[%clk 0:00:10.5]} 0-1

[Event "*** SCC Grand Prix: Titled Tuesday Blitz"]
[Site "Chess.com"]
[Date "2020.07.07"]
[Round "5"]
[White "TioCridineno"]
[Black "Falia-p"]
[Result "1/2-1/2"]
[WhiteElo "2113"]
[BlackElo "2304"]
[TimeControl "180+1"]
[EndTime "10:57:03 PDT"]
[Termination "Game drawn by agreement"]

1. e4 {[%clk 0:03:00.9]} 1... c6 {[%clk 0:02:59.3]} 2. c4 {[%clk 0:03:00.6]}
2... d5 {[%clk 0:03:00.2]} 3. exd5 {[%clk 0:03:00.9]} 3... cxd5 {[%clk
0:03:00.5]} 4. cxd5 {[%clk 0:03:01.6]} 4... Nf6 {[%clk 0:03:00.4]} 5. Nc3 {[%clk
0:03:01.3]} 5... g6 {[%clk 0:02:44.7]} 6. Bc4 {[%clk 0:03:00.4]} 6... Bg7 {[%clk
0:02:44.5]} 7. a4 {[%clk 0:02:59.4]} 7... O-O {[%clk 0:02:43.7]} 8. d3 {[%clk
0:02:59.3]} 8... b6 {[%clk 0:02:37.2]} 9. Qb3 {[%clk 0:02:58.3]} 9... Nbd7
{[%clk 0:02:30.5]} 10. Be3 {[%clk 0:02:58]} 10... Bb7 {[%clk 0:02:29.9]} 11. h3
{[%clk 0:02:56.9]} 11... Rc8 {[%clk 0:02:21.2]} 12. Nge2 {[%clk 0:02:56.4]}
12... Nc5 {[%clk 0:02:19.6]} 13. Qa2 {[%clk 0:02:52.2]} 13... Qd7 {[%clk
0:01:31.9]} 14. O-O {[%clk 0:02:39.1]} 14... Rcd8 {[%clk 0:01:24.8]} 15. d4
{[%clk 0:01:56.1]} 15... Na6 {[%clk 0:01:18.4]} 16. a5 {[%clk 0:01:53.9]} 16...
Nb4 {[%clk 0:01:16.5]} 17. Qb3 {[%clk 0:01:52.2]} 17... Nbxd5 {[%clk 0:01:15]}
18. axb6 {[%clk 0:01:51.5]} 18... axb6 {[%clk 0:01:08.7]} 19. Ra7 {[%clk
0:01:46]} 19... Qc6 {[%clk 0:01:03.4]} 20. Nxd5 {[%clk 0:01:38.1]} 20... Nxd5
{[%clk 0:01:00.2]} 21. Bxd5 {[%clk 0:01:37]} 21... Rxd5 {[%clk 0:00:57.1]} 22.
Nf4 {[%clk 0:01:15.1]} 22... Rb5 {[%clk 0:00:54]} 23. Qc3 {[%clk 0:01:13.7]}
23... e5 {[%clk 0:00:41.9]} 24. Qxc6 {[%clk 0:01:11.4]} 24... Bxc6 {[%clk
0:00:41.5]} 25. dxe5 {[%clk 0:01:11.8]} 25... Bxe5 {[%clk 0:00:39.2]} 26. Rc1
{[%clk 0:01:11.2]} 26... Bxf4 {[%clk 0:00:31.7]} 27. Bxf4 {[%clk 0:01:08]} 27...
Bd5 {[%clk 0:00:31.5]} 28. Rc2 {[%clk 0:01:03.2]} 28... Re8 {[%clk 0:00:25.1]}
29. Be3 {[%clk 0:01:03]} 29... Rb3 {[%clk 0:00:23.5]} 30. Rd2 {[%clk 0:01:01.4]}
30... Be6 {[%clk 0:00:21.8]} 31. Rb7 {[%clk 0:00:59.3]} 31... b5 {[%clk
0:00:21.8]} 32. Kh2 {[%clk 0:00:53.9]} 32... h5 {[%clk 0:00:21]} 33. Bg5 {[%clk
0:00:38.4]} 33... Bc4 {[%clk 0:00:17.8]} 34. Bf6 {[%clk 0:00:38]} 34... Rd3
{[%clk 0:00:17]} 35. Rxd3 {[%clk 0:00:37.4]} 35... Bxd3 {[%clk 0:00:17.6]} 36.
Kg3 {[%clk 0:00:36.1]} 36... Bc4 {[%clk 0:00:16.8]} 37. b4 {[%clk 0:00:35.7]}
37... Rc8 {[%clk 0:00:15.6]} 38. f4 {[%clk 0:00:34.3]} 38... Re8 {[%clk
0:00:15]} 39. Kh4 {[%clk 0:00:34]} 39... Rc8 {[%clk 0:00:14]} 40. g4 {[%clk
0:00:33.9]} 40... hxg4 {[%clk 0:00:13.5]} 41. hxg4 {[%clk 0:00:34.4]} 41... Be2
{[%clk 0:00:13.3]} 42. Kg5 {[%clk 0:00:33.5]} 42... Bc4 {[%clk 0:00:12.4]} 43.
Ra7 {[%clk 0:00:32.3]} 43... Kf8 {[%clk 0:00:11.9]} 44. Ra1 {[%clk 0:00:31.1]}
44... Ke8 {[%clk 0:00:12]} 45. Re1+ {[%clk 0:00:30]} 45... Kd7 {[%clk
0:00:12.1]} 46. Re7+ {[%clk 0:00:30.1]} 46... Kd6 {[%clk 0:00:12.5]} 47. Re5
{[%clk 0:00:29.3]} 47... Ra8 {[%clk 0:00:08.6]} 48. Be7+ {[%clk 0:00:29.3]}
48... Kd7 {[%clk 0:00:08.4]} 49. Bc5 {[%clk 0:00:29.2]} 49... Ra2 {[%clk
0:00:08]} 50. Re7+ {[%clk 0:00:29.1]} 50... Kc6 {[%clk 0:00:08]} 51. f5 {[%clk
0:00:27.6]} 51... gxf5 {[%clk 0:00:07.5]} 52. gxf5 {[%clk 0:00:28]} 52... Rg2+
{[%clk 0:00:07.7]} 53. Kf6 {[%clk 0:00:28.3]} 53... Re2 {[%clk 0:00:07.9]} 54.
Rxe2 {[%clk 0:00:25.2]} 54... Bxe2 {[%clk 0:00:08.8]} 55. Kxf7 {[%clk
0:00:25.7]} 55... Kd7 {[%clk 0:00:09.1]} 56. f6 {[%clk 0:00:24]} 56... Bc4+
{[%clk 0:00:08.9]} 57. Kg7 {[%clk 0:00:23.9]} 57... Ke8 {[%clk 0:00:08.9]} 58.
Kg6 {[%clk 0:00:21.3]} 58... Bf7+ {[%clk 0:00:09.8]} 59. Kf5 {[%clk 0:00:21.6]}
59... Bc4 {[%clk 0:00:10.5]} 60. Ke5 {[%clk 0:00:22]} 60... Kf7 {[%clk
0:00:10.9]} 61. Be7 {[%clk 0:00:21.5]} 61... Bf1 {[%clk 0:00:11.1]} 62. Kd6
{[%clk 0:00:22]} 62... Bc4 {[%clk 0:00:12]} 63. Kc5 {[%clk 0:00:22.4]} 63... Bf1
{[%clk 0:00:12.7]} 64. Kd4 {[%clk 0:00:22.2]} 64... Bc4 {[%clk 0:00:13.6]} 65.
Ke5 {[%clk 0:00:22.8]} 65... Bf1 {[%clk 0:00:14.1]} 66. Bd6 {[%clk 0:00:23.7]}
66... Bc4 {[%clk 0:00:14.6]} 67. Bc5 {[%clk 0:00:24.6]} 67... Bf1 {[%clk
0:00:14.8]} 68. Kf5 {[%clk 0:00:25.5]} 68... Bc4 {[%clk 0:00:15.5]} 69. Kg5
{[%clk 0:00:26.4]} 69... Bf1 {[%clk 0:00:16.2]} 70. Kh6 {[%clk 0:00:27.3]} 70...
Bc4 {[%clk 0:00:16.8]} 71. Kg5 {[%clk 0:00:27.1]} 71... Bf1 {[%clk 0:00:17.7]}
72. Kf4 {[%clk 0:00:28]} 72... Kxf6 {[%clk 0:00:17.9]} 73. Ke4 {[%clk
0:00:27.8]} 73... Ke6 {[%clk 0:00:18.4]} 74. Kd4 {[%clk 0:00:27.8]} 74... Bc4
{[%clk 0:00:19]} 75. Bb6 {[%clk 0:00:25.7]} 1/2-1/2

[Event "*** SCC Grand Prix: Titled Tuesday Blitz"]
[Site "Chess.com"]
[Date "2020.07.07"]
[Round "5"]
[White "BabyBoss31"]
[Black "Andrii_Prydun"]
[Result "1/2-1/2"]
[WhiteElo "2221"]
[BlackElo "2397"]
[TimeControl "180+1"]
[EndTime "10:57:06 PDT"]
[Termination "Game drawn by repetition"]

1. d4 {[%clk 0:03:00.9]} 1... d5 {[%clk 0:03:00.5]} 2. c4 {[%clk 0:03:01.8]}
2... c6 {[%clk 0:03:00.5]} 3. Nf3 {[%clk 0:03:01.6]} 3... Nf6 {[%clk 0:03:00.4]}
4. g3 {[%clk 0:03:01.8]} 4... e6 {[%clk 0:02:58]} 5. Qc2 {[%clk 0:03:01.2]} 5...
Nbd7 {[%clk 0:02:58.2]} 6. Bg2 {[%clk 0:03:01.3]} 6... Be7 {[%clk 0:02:58.7]} 7.
O-O {[%clk 0:02:59]} 7... O-O {[%clk 0:02:59.1]} 8. Nbd2 {[%clk 0:02:59.6]} 8...
b6 {[%clk 0:02:59.5]} 9. e4 {[%clk 0:02:59.7]} 9... Bb7 {[%clk 0:03:00.1]} 10.
e5 {[%clk 0:02:58.9]} 10... Ne8 {[%clk 0:03:00.7]} 11. Rd1 {[%clk 0:02:48.3]}
11... Rc8 {[%clk 0:03:00.2]} 12. b3 {[%clk 0:02:40.9]} 12... a5 {[%clk
0:03:00.2]} 13. Bb2 {[%clk 0:02:39.2]} 13... Nc7 {[%clk 0:03:00.2]} 14. h4
{[%clk 0:02:36.7]} 14... h6 {[%clk 0:02:59.6]} 15. Rac1 {[%clk 0:02:35.7]} 15...
Na6 {[%clk 0:02:59.6]} 16. Qb1 {[%clk 0:02:35.3]} 16... c5 {[%clk 0:02:59.2]}
17. dxc5 {[%clk 0:02:31]} 17... Naxc5 {[%clk 0:02:52]} 18. cxd5 {[%clk
0:02:30.6]} 18... Bxd5 {[%clk 0:02:50.9]} 19. Nc4 {[%clk 0:02:30.2]} 19... Be4
{[%clk 0:02:39.9]} 20. Qa1 {[%clk 0:02:29.3]} 20... Nd3 {[%clk 0:02:39.8]} 21.
Rc3 {[%clk 0:02:24.8]} 21... b5 {[%clk 0:02:18.9]} 22. Ncd2 {[%clk 0:02:07.6]}
22... Rxc3 {[%clk 0:02:13.7]} 23. Bxc3 {[%clk 0:02:08.5]} 23... Bd5 {[%clk
0:02:14.1]} 24. Nf1 {[%clk 0:02:04.9]} 24... N3c5 {[%clk 0:02:07.7]} 25. Ne3
{[%clk 0:02:00.1]} 25... Be4 {[%clk 0:01:54]} 26. Nd4 {[%clk 0:01:58.1]} 26...
Bxg2 {[%clk 0:01:41.4]} 27. Kxg2 {[%clk 0:01:59]} 27... b4 {[%clk 0:01:41.8]}
28. Bb2 {[%clk 0:01:48.4]} 28... Qa8+ {[%clk 0:01:41.5]} 29. Kg1 {[%clk
0:01:47.7]} 29... Nxe5 {[%clk 0:01:41.8]} 30. Ne2 {[%clk 0:01:07.9]} 30... Nf3+
{[%clk 0:01:41.9]} 31. Kf1 {[%clk 0:01:08.2]} 31... f6 {[%clk 0:00:35.5]} 32.
Nf4 {[%clk 0:01:06.9]} 32... Qa6+ {[%clk 0:00:29.6]} 33. Kg2 {[%clk 0:01:06.3]}
33... Qc6 {[%clk 0:00:28.8]} 34. Kf1 {[%clk 0:00:41.9]} 34... Ne4 {[%clk
0:00:27.6]} 35. Qc1 {[%clk 0:00:38.1]} 35... Qxc1 {[%clk 0:00:17.9]} 36. Rxc1
{[%clk 0:00:36.7]} 36... e5 {[%clk 0:00:17.1]} 37. Ng6 {[%clk 0:00:32]} 37...
Re8 {[%clk 0:00:15.1]} 38. Nd5 {[%clk 0:00:28.6]} 38... Bc5 {[%clk 0:00:13.6]}
39. Ke2 {[%clk 0:00:25.8]} 39... Nd4+ {[%clk 0:00:12.6]} 40. Kd3 {[%clk
0:00:17.7]} 40... f5 {[%clk 0:00:12.8]} 41. Kc4 {[%clk 0:00:18.5]} 41... Re6
{[%clk 0:00:10.6]} 42. f3 {[%clk 0:00:17.6]} 42... Rxg6 {[%clk 0:00:09.9]} 43.
fxe4 {[%clk 0:00:17.9]} 43... Ba7 {[%clk 0:00:08.5]} 44. exf5 {[%clk 0:00:17.6]}
44... Nxf5 {[%clk 0:00:09.4]} 45. Kd3 {[%clk 0:00:16.1]} 45... Rg4 {[%clk
0:00:08.7]} 46. Rf1 {[%clk 0:00:15.1]} 46... Rxg3+ {[%clk 0:00:08.8]} 47. Ke4
{[%clk 0:00:15]} 47... Nxh4 {[%clk 0:00:08.7]} 48. Bxe5 {[%clk 0:00:14.1]} 48...
Rg4+ {[%clk 0:00:09.1]} 49. Kd3 {[%clk 0:00:13.6]} 49... Ng6 {[%clk 0:00:09.1]}
50. Bd6 {[%clk 0:00:10.4]} 50... Rg5 {[%clk 0:00:08.7]} 51. Ne3 {[%clk
0:00:09.4]} 51... Rh5 {[%clk 0:00:07.3]} 52. Kd2 {[%clk 0:00:06.6]} 52... Bxe3+
{[%clk 0:00:06.6]} 53. Kxe3 {[%clk 0:00:06.8]} 53... Rh3+ {[%clk 0:00:07.5]} 54.
Kd4 {[%clk 0:00:07.1]} 54... Nh4 {[%clk 0:00:06.8]} 55. Kc5 {[%clk 0:00:05.6]}
55... Nf3 {[%clk 0:00:06.1]} 56. Kb5 {[%clk 0:00:05.8]} 56... g5 {[%clk
0:00:06.3]} 57. Kxa5 {[%clk 0:00:05.8]} 57... g4 {[%clk 0:00:06.7]} 58. Kxb4
{[%clk 0:00:05.4]} 58... Rh4 {[%clk 0:00:04.8]} 59. Bg3 {[%clk 0:00:04.7]} 59...
Rh3 {[%clk 0:00:04.7]} 60. Bf4 {[%clk 0:00:05.3]} 60... h5 {[%clk 0:00:04.5]}
61. a4 {[%clk 0:00:04.6]} 61... Nh4 {[%clk 0:00:03.4]} 62. a5 {[%clk 0:00:04.6]}
62... g3 {[%clk 0:00:03.6]} 63. a6 {[%clk 0:00:04.9]} 63... g2 {[%clk
0:00:03.9]} 64. Rg1 {[%clk 0:00:05.3]} 64... Rf3 {[%clk 0:00:03.8]} 65. a7
{[%clk 0:00:04.4]} 65... Rxf4+ {[%clk 0:00:03.8]} 66. Kb5 {[%clk 0:00:05.2]}
66... Rf8 {[%clk 0:00:04.7]} 67. Ka6 {[%clk 0:00:05.5]} 67... Rf6+ {[%clk
0:00:04.5]} 68. Kb7 {[%clk 0:00:05.7]} 68... Rf7+ {[%clk 0:00:04.9]} 69. Kb8
{[%clk 0:00:06]} 69... Rf8+ {[%clk 0:00:05.2]} 70. Kb7 {[%clk 0:00:06.7]} 70...
Rf7+ {[%clk 0:00:05.3]} 71. Ka6 {[%clk 0:00:06.8]} 71... Rf6+ {[%clk 0:00:05.4]}
72. Ka5 {[%clk 0:00:07]} 72... Rf5+ {[%clk 0:00:05.6]} 73. Ka6 {[%clk
0:00:07.7]} 73... Rf6+ {[%clk 0:00:05.6]} 1/2-1/2

[Event "*** SCC Grand Prix: Titled Tuesday Blitz"]
[Site "Chess.com"]
[Date "2020.07.07"]
[Round "5"]
[White "aleksandrovaleksei"]
[Black "Salem-AR"]
[Result "1/2-1/2"]
[WhiteElo "2656"]
[BlackElo "2918"]
[TimeControl "180+1"]
[EndTime "10:57:08 PDT"]
[Termination "Game drawn - insufficient material"]

1. d4 {[%clk 0:03:00.9]} 1... Nf6 {[%clk 0:03:00.1]} 2. c4 {[%clk 0:03:01.1]}
2... g6 {[%clk 0:03:00.7]} 3. Nc3 {[%clk 0:03:01.3]} 3... Bg7 {[%clk 0:03:01.4]}
4. e4 {[%clk 0:03:01.4]} 4... O-O {[%clk 0:03:02.1]} 5. Bg5 {[%clk 0:02:59.3]}
5... d6 {[%clk 0:03:01.4]} 6. Qd2 {[%clk 0:02:55.7]} 6... Na6 {[%clk 0:03:01.5]}
7. Bd3 {[%clk 0:02:48.8]} 7... e5 {[%clk 0:02:58.1]} 8. d5 {[%clk 0:02:48.2]}
8... c6 {[%clk 0:02:46.3]} 9. Nge2 {[%clk 0:02:46.6]} 9... Bd7 {[%clk
0:02:42.4]} 10. O-O {[%clk 0:02:42.6]} 10... Nc5 {[%clk 0:02:24.3]} 11. Bc2
{[%clk 0:02:41.1]} 11... cxd5 {[%clk 0:02:24.8]} 12. cxd5 {[%clk 0:02:27.5]}
12... a5 {[%clk 0:02:13.6]} 13. h3 {[%clk 0:02:17.2]} 13... b5 {[%clk
0:02:07.1]} 14. Ng3 {[%clk 0:02:06.2]} 14... b4 {[%clk 0:02:06.6]} 15. Nd1
{[%clk 0:02:06.1]} 15... Bb5 {[%clk 0:01:59.5]} 16. Re1 {[%clk 0:02:06]} 16...
Qb6 {[%clk 0:01:40.2]} 17. b3 {[%clk 0:02:04.1]} 17... Rac8 {[%clk 0:01:31.5]}
18. Nb2 {[%clk 0:02:02]} 18... Nfd7 {[%clk 0:01:07.1]} 19. Rac1 {[%clk
0:01:58.4]} 19... Qb7 {[%clk 0:00:39]} 20. Bb1 {[%clk 0:01:51.3]} 20... f6
{[%clk 0:00:36.3]} 21. Be3 {[%clk 0:01:50]} 21... Nb6 {[%clk 0:00:26.6]} 22. Nf1
{[%clk 0:01:44.8]} 22... f5 {[%clk 0:00:19.3]} 23. Bxc5 {[%clk 0:01:44.4]} 23...
dxc5 {[%clk 0:00:17.7]} 24. Ne3 {[%clk 0:01:42.9]} 24... Bh6 {[%clk 0:00:16.5]}
25. Qc2 {[%clk 0:01:39.6]} 25... Bxe3 {[%clk 0:00:11.3]} 26. Rxe3 {[%clk
0:01:39.2]} 26... f4 {[%clk 0:00:10.7]} 27. Ree1 {[%clk 0:01:37.8]} 27... c4
{[%clk 0:00:11.1]} 28. bxc4 {[%clk 0:01:37.3]} 28... Nxc4 {[%clk 0:00:11.5]} 29.
Nxc4 {[%clk 0:01:37.5]} 29... Rxc4 {[%clk 0:00:12.3]} 30. Qb2 {[%clk 0:01:37.7]}
30... Qe7 {[%clk 0:00:09.7]} 31. Bc2 {[%clk 0:01:28.1]} 31... Kg7 {[%clk
0:00:09]} 32. Bb3 {[%clk 0:01:23.2]} 32... Rd4 {[%clk 0:00:09.4]} 33. Rcd1
{[%clk 0:01:14.4]} 33... Bd3 {[%clk 0:00:09.2]} 34. Bc2 {[%clk 0:01:13.1]} 34...
Bxc2 {[%clk 0:00:08.5]} 35. Qxc2 {[%clk 0:00:56.4]} 35... f3 {[%clk 0:00:08.8]}
36. Rxd4 {[%clk 0:00:52.5]} 36... exd4 {[%clk 0:00:09.7]} 37. Qd3 {[%clk
0:00:52.5]} 37... Qe5 {[%clk 0:00:06.6]} 38. Rd1 {[%clk 0:00:52.2]} 38... fxg2
{[%clk 0:00:04.8]} 39. Qxd4 {[%clk 0:00:51]} 39... Qxd4 {[%clk 0:00:05.1]} 40.
Rxd4 {[%clk 0:00:51.2]} 40... Kf6 {[%clk 0:00:05]} 41. d6 {[%clk 0:00:51.2]}
41... Ke6 {[%clk 0:00:05]} 42. Kxg2 {[%clk 0:00:48.7]} 42... Rd8 {[%clk
0:00:04.9]} 43. Rd5 {[%clk 0:00:48.9]} 43... a4 {[%clk 0:00:03.5]} 44. Rb5
{[%clk 0:00:48.3]} 44... b3 {[%clk 0:00:03.7]} 45. axb3 {[%clk 0:00:48.2]} 45...
axb3 {[%clk 0:00:04.6]} 46. Rxb3 {[%clk 0:00:48.1]} 46... Rxd6 {[%clk
0:00:05.3]} 47. f4 {[%clk 0:00:47.7]} 47... Rd7 {[%clk 0:00:03.8]} 48. Kf3
{[%clk 0:00:47.3]} 48... Kf7 {[%clk 0:00:03.8]} 49. h4 {[%clk 0:00:44.2]} 49...
Ra7 {[%clk 0:00:04]} 50. Kg4 {[%clk 0:00:43.4]} 50... h6 {[%clk 0:00:04.5]} 51.
h5 {[%clk 0:00:42.9]} 51... gxh5+ {[%clk 0:00:05.4]} 52. Kxh5 {[%clk 0:00:43]}
52... Ra4 {[%clk 0:00:06.1]} 53. Re3 {[%clk 0:00:42.1]} 53... Kf6 {[%clk
0:00:05.8]} 54. Kg4 {[%clk 0:00:42.1]} 54... Ke6 {[%clk 0:00:05.8]} 55. e5
{[%clk 0:00:40.3]} 55... h5+ {[%clk 0:00:05.4]} 56. Kg5 {[%clk 0:00:40.6]} 56...
h4 {[%clk 0:00:05]} 57. Rh3 {[%clk 0:00:40.3]} 57... Ra8 {[%clk 0:00:03.8]} 58.
Kxh4 {[%clk 0:00:40.1]} 58... Kf5 {[%clk 0:00:03.9]} 59. Rf3 {[%clk 0:00:39.8]}
59... Rg8 {[%clk 0:00:04.5]} 60. Rf1 {[%clk 0:00:38.2]} 60... Rg7 {[%clk
0:00:05]} 61. Kh3 {[%clk 0:00:38.4]} 61... Rg8 {[%clk 0:00:05.5]} 62. Rf2 {[%clk
0:00:37]} 62... Rg7 {[%clk 0:00:06.1]} 63. Kh2 {[%clk 0:00:37.3]} 63... Rg8
{[%clk 0:00:06.5]} 64. Rf3 {[%clk 0:00:37.6]} 64... Rg7 {[%clk 0:00:06.8]} 65.
Rg3 {[%clk 0:00:37.3]} 65... Rh7+ {[%clk 0:00:06.6]} 66. Rh3 {[%clk 0:00:37.4]}
66... Rg7 {[%clk 0:00:06.7]} 67. Rh4 {[%clk 0:00:35.7]} 67... Rg8 {[%clk
0:00:07]} 68. Kh3 {[%clk 0:00:34.4]} 68... Rg7 {[%clk 0:00:07.5]} 69. Kh2 {[%clk
0:00:31.3]} 69... Rg8 {[%clk 0:00:08]} 70. Rh3 {[%clk 0:00:31.6]} 70... Kxf4
{[%clk 0:00:07.7]} 71. e6 {[%clk 0:00:30.4]} 71... Kf5 {[%clk 0:00:08]} 72. Re3
{[%clk 0:00:30]} 72... Re8 {[%clk 0:00:07.7]} 73. e7 {[%clk 0:00:29.4]} 73...
Kf6 {[%clk 0:00:06.9]} 74. Kg3 {[%clk 0:00:29.7]} 74... Rxe7 {[%clk 0:00:07.2]}
75. Rxe7 {[%clk 0:00:29.8]} 75... Kxe7 {[%clk 0:00:08.1]} 1/2-1/2